Cogmind - Beta 17 @@@ ROGUE MODE // 2026.06.29 @ 11:10:40 Player: goobie Result: Destroyed by D-53 Grenadier with Mini Grenade Launcher Performance ------------- Evolutions (1) 500 Regions Visited (3) 600 Robots Destroyed (29) 145 Value Destroyed (876) 876 Prototype IDs (3) 60 Alien Tech Used (0) 0 Bonus (0) 0 TOTAL SCORE: 2181 Bonus ------- None Cogmind --------- Core Integrity 0/400 Matter 300/300 Energy 100/100 System Corruption 8% Temperature Cool (0) Movement Core (200) Ox3 Location -9/Mines Parts ------- > --- POWER (1) -------- (None) > --- PROPULSION (3) --- (None) > --- UTILITY (2) ------ Medium Storage Unit > --- WEAPON (3) ------- Medium Laser > --- INVENTORY (10) --- Improved Aluminum Leg Heat Sink Visual Processing Unit Peak State ------------ > --- POWER ------------ Ion Engine > --- PROPULSION ------- Light Treads Light Treads Light Treads > --- UTILITY ---------- Heat Sink Small Storage Unit > --- WEAPON ----------- Improved Medium Laser Assault Rifle Heavy Assault Rifle > --- INVENTORY -------- Light Ion Engine Light Treads Improved Aluminum Leg Heat Sink Sensor Array Medium Laser Particle Gun Beam Cannon [Rating: 13] Favorites ----------- Power Light Ion Engine Engine Light Ion Engine Propulsion Light Treads Treads Light Treads Utility Small Storage Unit Device Heat Sink Storage Small Storage Unit Weapon Particle Gun Energy Gun Particle Gun Energy Cannon Beam Cannon Ballistic Gun Assault Rifle Build | -11 -10 -9 -9 ------- Run | Yrd Mat Mat Min Slots Evolved 2 | . . 2 . Power . | . . . . Propulsion 1 | . . 1 . Utility . | . . . . Weapon 1 | . . 1 . Parts Attached 20 | 5 3 11 1 Power 4 | 1 . 3 . Engine 4 | 1 . 3 . Core . | . . . . Reactor . | . . . . Propulsion 5 | 1 1 3 . Treads 5 | 1 1 3 . Leg . | . . . . Wheel . | . . . . Hover . | . . . . Flight . | . . . . Utility 4 | 1 1 2 . Device 2 | . 1 1 . Storage 2 | 1 . 1 . Processor . | . . . . Hackware . | . . . . Protection . | . . . . Artifact . | . . . . Weapon 7 | 2 1 3 1 Energy Gun 4 | 1 1 1 1 Energy Cannon 1 | . . 1 . Ballistic Gun 2 | 1 . 1 . Ballistic Cannon . | . . . . Launcher . | . . . . Special Weapon . | . . . . Impact Weapon . | . . . . Slashing Weapon . | . . . . Piercing Weapon . | . . . . Special Melee Weapon . | . . . . Unidentified Prototypes 1 | . . 1 . Parts Lost 13 | . . 6 7 Power 2 | . . 1 1 Propulsion 5 | . . 2 3 Utility 1 | . . . 1 Weapon 5 | . . 3 2 Highest Loss Streak 4 | . . 2 4 To Critical Strikes . | . . . . Average Backups 6 | 3 6 6 3 Power . | . 1 . . Propulsion 1 | 1 2 1 1 Utility 1 | . . 1 2 Weapon 2 | 1 3 2 . Tool/Special . | . . . . Unused Backups 7 | . . 4 3 Power 1 | . . 1 . Propulsion 3 | . . 2 1 Utility 2 | . . . 2 Weapon 1 | . . 1 . Tool/Special . | . . . . Average Slot Usage (%) 90 | . 80 96 69 Engine 11 | . 14 10 5 Treads 28 | . 21 30 28 Device 8 | . 1 11 4 Storage 11 | . 14 11 11 Energy Gun 13 | . 14 13 16 Energy Cannon 3 | . . 4 5 Ballistic Gun 13 | . 14 14 . Peak Build Rating 13 | 5 8 13 11 Average Rating 9 | 3 6 11 6 On Entrance 5 | . 5 8 10 Avg Prop Armor Cover (%) . | . . . . Naked Turns . | . . . . Heaviest Build 27 | 12 14 27 24 Greatest Support 60 | 20 40 60 60 Greatest Overweight (x) 3 | . . . 3 Average Overweight (x) . | . . . . Largest Inventory Capacity 10 | 8 8 10 10 Average Capacity 8 | 7 8 8 10 Most Carried 8 | 7 8 8 3 Average Carried 6 | 3 6 6 3 Final Capacity 10 | 8 8 10 10 Final Carried 7 | 5 7 4 3 Class Distribution -------------------- 53% | Scavenger-Gunner 33% | Mutant 11% | Skirmisher Dominant Class ---------------- Mutant | -10/Materials Scavenger-Gunner | -9/Materials Mutant | -9/Mines Resources | -11 -10 -9 -9 ----------- Run | Yrd Mat Mat Min Matter Collected 667 | 174 126 367 . Remotely . | . . . . Salvage Created 1104 | . 161 929 14 Parts 57 | . 6 51 . Haulers Intercepted 1 | . . 1 . Recyclers Shooed . | . . . . Parts Field Recycled . | . . . . Retrieved Matter . | . . . . Parts Self-Destructed . | . . . . Prevented . | . . . . Parts Restored . | . . . . Kills | -11 -10 -9 -9 ------- Run | Yrd Mat Mat Min Combat Hostiles Destroyed 24 | . 4 19 1 Melee 1 | . 1 . . Guns 22 | . 3 18 1 Cannons 1 | . . 1 . Classes Destroyed 10 | . 2 7 1 Hauler 1 | . . 1 . Recycler 1 | . . 1 . Operator 1 | . . 1 . Watcher 3 | . 1 2 . Swarmer 3 | . . 3 . Grunt 15 | . 4 11 . Brawler 1 | . . 1 . Duelist 1 | . . 1 . Sentry 3 | . . 3 . Assembled 1 | . . . 1 Best Kill Streak 5 | . 3 5 1 Combat Bots Only 4 | . 3 4 1 Max Kills in Single Turn 2 | . 1 2 1 Gunslinging . | . . . . Exploded . | . . . . Melee 1 | . 1 . . Uniques/NPCs Destroyed . | . . . . Combat | -11 -10 -9 -9 -------- Run | Yrd Mat Mat Min Hostile Shots Fired 174 | . 33 118 23 Missed 48 | . 15 30 3 Hits 126 | . 18 88 20 Melee 7 | . . 3 4 Projectile 119 | . 18 85 16 AOE 11 | . . . 11 Critical Strikes 2 | . . 2 . Damage Taken 1855 | . 195 1049 611 Core 407 | . . 198 209 Absorbed by Shields . | . . . . Core Remaining (%) 100 | 100 100 . . Volleys Fired 60 | . 14 43 3 Largest 3 | . 2 3 3 Hottest 181 | . 85 181 166 Shots Fired 160 | . 28 123 9 Gun 142 | . 28 108 6 Cannon 18 | . . 15 3 Launcher . | . . . . Special . | . . . . Kinetic 73 | . 14 59 . Thermal 79 | . 6 64 9 Explosive . | . . . . Electromagnetic 8 | . 8 . . Robot Hit Streak 19 | . 4 19 1 Robot Miss Streak 5 | . 3 5 2 Penetration Max . | . . . . Secondary Targets 2 | . . 2 . Max Gunslinging Chain 1 | . . 1 . Shots Hit Robots 94 | . 16 75 3 Core Hits 46 | . 8 35 3 Critical Kills 1 | . 1 . . Critical Parts Destroyed . | . . . . Critical Strikes 3 | . 2 1 . Burn 2 | . 1 1 . Destroy 1 | . 1 . . Melee Attacks . | . . . . Impact . | . . . . Slashing . | . . . . Piercing . | . . . . Sneak Attacks . | . . . . Combat Hostiles . | . . . . Follow-up Attacks . | . . . . Damage Inflicted 1437 | . 239 1145 53 Guns 1302 | . 233 1034 35 Cannons 125 | . . 107 18 Explosions . | . . . . Melee . | . . . . Ramming 10 | . 6 4 . Kinetic 681 | . 128 553 . Thermal 706 | . 65 588 53 Explosive . | . . . . Electromagnetic 40 | . 40 . . Impact . | . . . . Slashing . | . . . . Piercing . | . . . . Highest Corruption 8 | . . 3 8 Average Corruption 4 | . . 3 6 Corruption Purged . | . . . . Corruption Blocked . | . . . . Effects 7 | . . 5 2 Message Errors 1 | . . 1 . Matter Fused 1 | . . 1 . Heat Flow Errors 2 | . . 2 . Energy Discharges 1 | . . . 1 Data Loss (minor) 1 | . . . 1 Weapon Failures 1 | . . 1 . Overload Shots . | . . . . Overflow Damage . | . . . . Projectiles . | . . . . Explosions . | . . . . Melee . | . . . . Knockbacks . | . . . . Impact . | . . . . Kinetic . | . . . . Secondary . | . . . . Self-Inflicted Damage . | . . . . Shots . | . . . . Rammed 4 | . 4 . . Targets Rammed 6 | . 5 1 . Kicked . | . . . . Crushed 2 | . 1 1 . Highest Temperature 583 | . 66 583 185 Average Temperature 111 | . 21 132 97 Received Heat Transfer 420 | . 87 333 . Effects 13 | . . 13 . Shutdowns 3 | . . 3 . Energy Bleed 2 | . . 2 . Interference 3 | . . 3 . Matter Decay 2 | . . 2 . Damage (major) 2 | . . 2 . Damage (core) 1 | . . 1 . Siege Activations . | . . . . Martial Activations . | . . . . Shielding Activations . | . . . . Robots Disrupted . | . . . . Combat Hostiles . | . . . . Robots Corrupted . | . . . . Combat Hostiles . | . . . . Parts Fried 1 | . 1 . . Impact Corruptions . | . . . . Robots Melted . | . . . . Combat Hostiles . | . . . . Parts Melted . | . . . . Heat Transferred 1776 | . 222 1443 111 Parts Sabotaged . | . . . . Parts Stolen . | . . . . Parts Stripped . | . . . . Power Chain Reactions . | . . . . Alert | -11 -10 -9 -9 ------- Run | Yrd Mat Mat Min Maximum Alert Level 1 | . . 1 . Low Security (%) 88 | 100 100 81 100 Level 1 11 | . . 18 . Level 2 . | . . . . Level 3 . | . . . . Level 4 . | . . . . Level 5 . | . . . . High Security . | . . . . Max Security . | . . . . Peak Influence 341 | . 65 341 117 Initial 117 | . . 5 117 Average 86 | . 24 119 67 Influence Increases 809 | . 127 682 . Destroy 0b10 Robot/C 460 | . 80 380 . Destroy 0b10 Robot/NC 30 | . 5 25 . Destroy Leader 118 | . 12 106 . Successful Hack 5 | . . 5 . Disable Machine 30 | . . 30 . Destroy Structure 1 | . . 1 . Lose Combat Pursuer 165 | . 30 135 . Influence Decreases 802 | . 112 396 294 Entered New Map 194 | . . 10 184 Time Decay 478 | . 112 326 40 Lost Part 130 | . . 60 70 Squads Dispatched 3 | . . 3 . Investigation . | . . . . Extermination . | . . . . Reinforcement 3 | . . 3 . Assault . | . . . . Garrison . | . . . . Intercept . | . . . . Searches Triggered . | . . . . Construction Impeded . | . . . . Haulers Reinforced . | . . . . Active Scanning Responses . | . . . . Cargo Convoy Interrupts . | . . . . Stealth | -11 -10 -9 -9 --------- Run | Yrd Mat Mat Min Distress Signals 8 | . 1 7 . Communications Jammed . | . . . . Distress Signals . | . . . . Times Spotted 68 | . 13 33 22 Peak Tracking Total 11 | . 5 5 11 Tactical Retreats 6 | . 2 4 . Traps | -11 -10 -9 -9 ------- Run | Yrd Mat Mat Min Traps Triggered . | . . . . Indirectly . | . . . . Trap Hack Attempts . | . . . . Triggered . | . . . . Disarmed . | . . . . Reprogrammed . | . . . . Reused . | . . . . Traps Extracted . | . . . . Installed . | . . . . Triggered . | . . . . Machines | -11 -10 -9 -9 ---------- Run | Yrd Mat Mat Min Machines Disabled 2 | . . 2 . Max in Single Turn 1 | . . 1 . Machines Repaired . | . . . . Machines Dismantled . | . . . . Machines Sabotaged . | . . . . Overloaded Fab Kills . | . . . . Hacking | -11 -10 -9 -9 --------- Run | Yrd Mat Mat Min Machines Accessed 5 | . 3 2 . Terminals 5 | . 3 2 . Fabricators . | . . . . Repair Stations . | . . . . Recycling Units . | . . . . Scanalyzers . | . . . . Garrison Access . | . . . . Total Hacks 13 | . 6 7 . Successful 9 | . 3 6 . Failed 4 | . 3 1 . Catastrophic . | . . . . Database Lockouts . | . . . . Manual . | . . . . Terminals 13 | . 6 7 . Fabricators . | . . . . Repair Stations . | . . . . Recycling Units . | . . . . Scanalyzers . | . . . . Garrison Access . | . . . . Terminal Hacks 9 | . 3 6 . Robot Analysis 1 | . . 1 . Prototype ID Bank 1 | . . 1 . Emergency Access Points 1 | . . 1 . Alert Level 3 | . 1 2 . Locate Traps 3 | . 2 1 . Fabricator Hacks . | . . . . Repair Station Hacks . | . . . . Recycling Unit Hacks . | . . . . Scanalyzer . | . . . . Garrison Access Hacks . | . . . . Unauthorized Hacks . | . . . . Terminals . | . . . . Fabricators . | . . . . Repair Stations . | . . . . Recycling Units . | . . . . Scanalyzers . | . . . . Garrison Access . | . . . . Data Cores Recovered . | . . . . Used . | . . . . Hacking Detections 4 | . 3 1 . Full Trace Events . | . . . . Feedback Events . | . . . . Feedback Blocked . | . . . . Robot Schematics Acquired . | . . . . Robots Built . | . . . . Authchips . | . . . . Time . | . . . . Total Robot Build Rating . | . . . . Part Schematics Acquired . | . . . . Parts Built . | . . . . Authchips . | . . . . Time . | . . . . Total Part Build Rating . | . . . . Part Studies Acquired . | . . . . Parts Repaired . | . . . . Time . | . . . . Parts Recycled . | . . . . Recycled Matter . | . . . . Retrieved Matter . | . . . . Retrieved Components . | . . . . Parts Scanalyzed . | . . . . Part Schematics Acquired . | . . . . Parts Damaged . | . . . . Bothacking | -11 -10 -9 -9 ------------ Run | Yrd Mat Mat Min Used RIF Installer . | . . . . Robots Hacked . | . . . . Non-combat . | . . . . Combat . | . . . . Robot Hacks Applied . | . . . . Relay Couplers Released . | . . . . Fabnet Peak Effective % . | . . . . Robots Rewired . | . . . . Allies Hacked . | . . . . Hacks Repelled . | . . . . Allies | -11 -10 -9 -9 -------- Run | Yrd Mat Mat Min Total Allies . | . . . . Largest Group . | . . . . Highest-Rated Group . | . . . . Highest-Rated Ally . | . . . . Total Orders . | . . . . Ally Attacks . | . . . . Total Damage . | . . . . Kills . | . . . . Allies Corrupted . | . . . . Allies Melted . | . . . . Intel | -11 -10 -9 -9 ------- Run | Yrd Mat Mat Min Active Infowar (turns) 203 | . 47 156 . Sensors 203 | . 47 156 . Robot Analysis Total 1 | . . 1 . Derelict Logs Recovered . | . . . . Drone Launches . | . . . . Drone Recoveries . | . . . . Exploration | -11 -10 -9 -9 ------------- Run | Yrd Mat Mat Min Turns Passed 1291 | 77 299 817 98 Spaces Moved 592 | 42 151 346 53 Core 10 | 4 . . 6 Treads 582 | 38 151 346 47 Legs . | . . . . Wheels . | . . . . Hover . | . . . . Flight . | . . . . Fastest Speed 50 | 50 160 160 160 Average Speed 159 | 149 160 160 164 Slowest Speed 200 | 160 160 160 200 Overloaded Moves . | . . . . Propulsion Burnouts . | . . . . Robots Hopped . | . . . . Potential Cave-ins . | . . . . Cave-ins Triggered . | . . . . Exploration Rate (%) 20 | 4 26 33 20 Regions Visited 3 Branch Regions 1 Pre-discovered Areas . | . . . . Known Exits Taken . | . . . . Unknown Exits Taken 3 | 1 1 1 . Scrap Searched . | . . . . Spaces Dug . | . . . . Terrain Destroyed . | . . . . Melee . | . . . . Projectile . | . . . . AOE . | . . . . Terrain Rammed . | . . . . Walls Destroyed . | . . . . Machines Disabled . | . . . . Actions | -11 -10 -9 -9 --------- Run | Yrd Mat Mat Min Total 808 | 56 177 518 57 Wait 96 | . 1 95 . Move 589 | 41 150 345 53 Hop . | . . . . Pick Up 25 | 10 4 11 . Fast Attach . | . . . . Attach 16 | 5 2 8 1 Detach . | . . . . Swap 6 | . 1 5 . Drop 10 | . . 10 . Fire 60 | . 14 43 3 Melee . | . . . . Ram . | . . . . Kick . | . . . . Crush 6 | . 5 1 . Escape Stasis . | . . . . Rewire . | . . . . Trap . | . . . . Miscellaneous . | . . . . Route ------- -11/Scrapyard -10/Materials -9/Materials (discovered 2 exits: [*Min x2]) -9/Mines History --------- Turn | Location | Event 38 | -11/Scrapyard | Discovered new exit (range 13) 78 | -11/Scrapyard | Entered Materials 295 | -10/Materials | Discovered new exit (range 7) 304 | -10/Materials | Build established: Mutant 377 | -10/Materials | Entered another Materials area 377 | -9/Materials | Evolved 2 slots: Propulsion x1, Weapon x1 830 | -9/Materials | Build established: Scavenger-Gunner 1186 | -9/Materials | Discovered new exit (range 6) 1188 | -9/Materials | Discovered new exit (range 16) 1194 | -9/Materials | Entered Mines 1195 | -9/Mines | Assembled infested the area 1215 | -9/Mines | Core integrity fell below 50% 1268 | -9/Mines | Lost 4 parts (1p1u2w) 1276 | -9/Mines | Core integrity fell below 20% 1292 | -9/Mines | Destroyed by D-53 Grenadier with Mini Grenade Launcher Last Messages --------------- 01247_ as-67905 destroyed. 01249_ The unstable cave ceiling collapses. 01252_ as-99877 destroyed. 01252_ as-44745 destroyed. 01252_ as-17742 destroyed. 01253_ as-10250 destroyed. 01255_ The unstable cave ceiling collapses. 01258_ System corrupted: Component data lost. 01259_ as-62455 destroyed. 01263_ The unstable cave ceiling collapses. 01271_ Lgt. Treads destroyed. 01273_ The unstable cave ceiling collapses. 01275_ Lgt. Treads destroyed. 01282_ K-01 Serf collects debris. 01285_ U-05 Engineer lays Concrete. 01285_ K-01 Serf collects debris. 01286_ U-05 Engineer builds a Wall. 01289_ The unstable cave ceiling collapses. 01289_ K-01 Serf collects debris. 01290_ U-05 Engineer lays Concrete. Map ----- +----------------------------------------------------+ | ?????????????????????????????????????????????????? | | ?????????????????????????????????????????????????? | | ?????????????????????????????????????????????????? | | ?????????????????????????????????????????????????? | | ?????????????????????????????????????????????????? | | ??????????????????????????? ????????????????? | | ????????????????????????? #??????????????? | | ??????????????????????? #??????????????? | | ??????????????????????? #????????????? ? | | ???????????????????????# #??????????? | | ??????????????????????## ##????? ??## | | ?????????????????????## ##??? ? | | ?????????????????????? ##??# ? | | ??????????????????????? #?## | | ???????????????????????? #?# | | ?????????????????????????# #??? | | ??????????????????????????# #??? % | | ??????????????????????????# #???? | | ????????????????????????### ##???# # | | ????????????????????????# ##k ## | | ??????????????????????### d # # | | ??????????????????????# # # ## | | ??????????????????????# # #??# # | | ????????????????????#### ###??# # | | ????????????????????# g ###????# # # | | ????????????????????# #@ ##??????# # # | | ?????????????????# u ####???????# # | | ?????????????????# #??????????## %"# | | ??????????????? #???????????# # | | ????????????? s ##?????????? ### ## | | ???????????? #### ##????????? ??##### #? | | ?????????????????# ##??????????# ??????? #? | | ????????????????# #????????????# ??????? #? | | ???????????????# #?????????????## ???????##? | | ???????????????# ???????????????####?????????? | | ???????????????## ?????????????????????????????? | | ????????????????### ?????????????????????????????? | | ??????????????????#??????????????????????????????? | | ?????????????????????????????????????????????????? | | ?????????????????????????????????????????????????? | | ?????????????????????????????????????????????????? | | ?????????????????????????????????????????????????? | | ?????????????????????????????????????????????????? | | ?????????????????????????????????????????????????? | | ?????????????????????????????????????????????????? | | ?????????????????????????????????????????????????? | | ?????????????????????????????????????????????????? | | ?????????????????????????????????????????????????? | | ?????????????????????????????????????????????????? | | ?????????????????????????????????????????????????? | +----------------------------------------------------+ Best States ------------- Heat Dissipation 38 Energy Generation 12 Energy Capacity 265 Matter Stores 300 Matter Capacity 300 Sight Range 16 Robot Scan Range 14 Terrain Scan Density 10 Evasion (%) 40 Recoil Reduction 3 Item Schematics ----------------- None Robot Schematics ------------------ None Fabricated ------------ Nothing Repaired ---------- Nothing Studied --------- None Alien Tech Used ----------------- None Achievements -------------- None Challenges ------------ None Game ------ Seed DynamicDisposableAutominer Manual? 0 Play Time 00:13:45 Cumulative 29.1 hours Start 2026.06.29 @ 10:53:51 End 2026.06.29 @ 11:10:40 Sessions 1 Manual Loads 0 Difficulty Rogue Special Mode None Game No. 44 Rogue 16 Adventurer 28 Explorer 0 Win Type - Total 0 Types 0/0/0/0/0/0/0/0/0/0 Lore% 15 Gallery% 22 Achievement% 17 Wizard Run 0 Options --------- Layout 1 ASCII 0 Keyboard 0 Movement Mouse Keybinds 0 Fullscreen 1 Font 24/Smallcaps Map View 50x35 Zoom Use 0% Tactical HUD 1 Map Filters NONE Filters NONE Steam 1 RUN: ffc6e526-a5c9-4071-84d5-5133f7aabb39